Cogmind - Beta 14 *** ADVENTURER MODE // 2024.08.28 @ 15:22:48 Player: LegoMDS Result: Destroyed by as-38311 with Assembled Blade Performance ------------- Evolutions (0) 0 Regions Visited (2) 400 Robots Destroyed (14) 70 Value Destroyed (362) 362 Prototype IDs (0) 0 Alien Tech Used (0) 0 Bonus (0) 0 TOTAL SCORE: 832 Bonus ------- None Cogmind --------- Core Integrity 0/250 Matter 276/300 Energy 100/100 System Corruption 1% Temperature Cool (0) Movement Walking (120) Location -10/Mines Parts ------- > --- POWER (1) -------- (None) > --- PROPULSION (2) --- Aluminum Leg Aluminum Leg > --- UTILITY (2) ------ Small Storage Unit Targeting Computer > --- WEAPON (2) ------- Heavy Assault Rifle Rocket Launcher > --- INVENTORY (8) ---- Aluminum Leg Sensor Array Heavy Assault Rifle Light Cannon Datajack Mining Laser Peak State ------------ > --- POWER ------------ Light Deuterium Engine > --- PROPULSION ------- Aluminum Leg Aluminum Leg > --- UTILITY ---------- Small Storage Unit ECM Suite > --- WEAPON ----------- Heavy Assault Rifle Light Cannon > --- INVENTORY -------- Aluminum Leg Aluminum Leg Sensor Array Targeting Computer Heavy Assault Rifle Rocket Launcher Datajack Mining Laser [Rating: 11] Favorites ----------- Power Ion Engine Engine Ion Engine Propulsion Aluminum Leg Leg Aluminum Leg Utility Small Storage Unit Device ECM Suite Storage Small Storage Unit Processor Targeting Computer Weapon Assault Rifle Ballistic Gun Assault Rifle Ballistic Cannon Light Cannon Launcher Rocket Launcher Build | -11 -10 -10 ------- Run | Yrd Mat Min Slots Evolved . | . . . Power . | . . . Propulsion . | . . . Utility . | . . . Weapon . | . . . Parts Attached 17 | 6 4 7 Power 3 | 1 . 2 Engine 3 | 1 . 2 Core . | . . . Reactor . | . . . Propulsion 4 | 2 1 1 Treads . | . . . Leg 4 | 2 1 1 Wheel . | . . . Hover . | . . . Flight . | . . . Utility 3 | 1 1 1 Device 1 | . 1 . Storage 1 | 1 . . Processor 1 | . . 1 Hackware . | . . . Protection . | . . . Artifact . | . . . Weapon 7 | 2 2 3 Energy Gun . | . . . Energy Cannon . | . . . Ballistic Gun 3 | 2 1 . Ballistic Cannon 2 | . 1 1 Launcher 2 | . . 2 Special Weapon . | . . . Impact Weapon . | . . . Slashing Weapon . | . . . Piercing Weapon . | . . . Special Melee Weapon . | . . . Unidentified Prototypes . | . . . Parts Lost 2 | . . 2 Power 1 | . . 1 Propulsion . | . . . Utility 1 | . . 1 Weapon . | . . . Highest Loss Streak 1 | . . 1 To Critical Strikes . | . . . Average Slot Usage (%) 98 | . 98 98 Engine 13 | . 14 13 Leg 28 | . 28 28 Device 12 | . 13 12 Storage 14 | . 14 14 Ballistic Gun 17 | . 19 14 Ballistic Cannon 9 | . 8 11 Peak Build Rating 11 | 6 8 11 Average Rating 7 | 3 7 9 On Entrance 4 | . 6 8 Naked Turns . | . . . Heaviest Build 19 | 14 18 19 Greatest Support 20 | 20 20 20 Greatest Overweight (x) . | . . . Average Overweight (x) . | . . . Largest Inventory Capacity 8 | 8 8 8 Average Capacity 7 | 6 8 8 Most Carried 8 | 5 8 8 Average Carried 6 | 2 6 7 Final Capacity 8 | 8 8 8 Final Carried 8 | 2 8 6 Class Distribution -------------------- 100% | Mutant Dominant Class ---------------- Mutant | -10/Materials Mutant | -10/Mines Resources | -11 -10 -10 ----------- Run | Yrd Mat Min Matter Collected 754 | 248 272 234 Remotely . | . . . Salvage Created 447 | . 416 31 Parts 25 | . 25 . Haulers Intercepted . | . . . Recyclers Shooed 2 | . 2 . Parts Field Recycled . | . . . Retrieved Matter . | . . . Parts Self-Destructed . | . . . Prevented . | . . . Kills | -11 -10 -10 ------- Run | Yrd Mat Min Combat Hostiles Destroyed 18 | . 9 9 Guns 10 | . 9 1 Cannons 1 | . . 1 AOE 7 | . . 7 Classes Destroyed 6 | . 4 2 Worker 1 | . 1 . Watcher 3 | . 3 . Swarmer 3 | . 3 . Grunt 6 | . 6 . Demolisher 1 | . . 1 Assembled 8 | . . 8 Best Kill Streak 5 | . 5 5 Combat Bots Only 5 | . 3 5 Max Kills in Single Turn 4 | . 1 4 Gunslinging . | . . . Exploded 3 | . . 3 Melee . | . . . Uniques/NPCs Destroyed . | . . . Combat | -11 -10 -10 -------- Run | Yrd Mat Min Hostile Shots Fired 91 | . 62 29 Missed 29 | . 23 6 Damage Taken 920 | . 323 597 Core 251 | . 55 196 Absorbed by Shields . | . . . Ignored by Resistances 265 | . 100 165 Core Remaining (%) 100 | 100 . . Volleys Fired 60 | . 43 17 Largest 2 | . 2 2 Hottest 58 | . 55 58 Shots Fired 119 | . 86 33 Gun 98 | . 81 17 Cannon 17 | . 5 12 Launcher 4 | . . 4 Special . | . . . Kinetic 115 | . 86 29 Thermal . | . . . Explosive 4 | . . 4 Electromagnetic . | . . . Robot Hit Streak 13 | . 13 9 Robot Miss Streak 4 | . 4 2 Penetration Max . | . . . Secondary Targets 2 | . 2 . Max Gunslinging Chain 1 | . 1 . Shots Hit Robots 84 | . 60 24 Core Hits 43 | . 23 20 Critical Kills . | . . . Critical Parts Destroyed . | . . . Critical Strikes 1 | . . 1 Blast 1 | . . 1 Melee Attacks . | . . . Impact . | . . . Slashing . | . . . Piercing . | . . . Sneak Attacks . | . . . Combat Hostiles . | . . . Follow-up Attacks . | . . . Damage Inflicted 1559 | . 771 788 Guns 919 | . 735 184 Cannons 217 | . 36 181 Explosions 423 | . . 423 Melee . | . . . Ramming . | . . . Kinetic 1136 | . 771 365 Thermal . | . . . Explosive 423 | . . 423 Electromagnetic . | . . . Impact . | . . . Slashing . | . . . Piercing . | . . . Highest Corruption 1 | . 1 1 Average Corruption 1 | . 1 1 Corruption Purged . | . . . Corruption Blocked . | . . . Effects 6 | . 3 3 Message Errors 2 | . 1 1 Matter Fused 2 | . 1 1 Heat Flow Errors 2 | . 1 1 Overload Shots . | . . . Overflow Damage 5 | . . 5 Projectiles 5 | . . 5 Explosions . | . . . Melee . | . . . Knockbacks 1 | . . 1 Impact . | . . . Kinetic 1 | . . 1 Secondary . | . . . Self-Inflicted Damage 47 | . . 47 Shots 2 | . . 2 Rammed . | . . . Targets Rammed . | . . . Kicked . | . . . Crushed . | . . . Highest Temperature 319 | . 149 319 Average Temperature 128 | . 31 186 Received Heat Transfer 234 | . 174 60 Effects 1 | . . 1 Energy Bleed 1 | . . 1 Siege Activations . | . . . Robots Corrupted . | . . . Combat Hostiles . | . . . Parts Fried . | . . . Impact Corruptions . | . . . Robots Melted . | . . . Combat Hostiles . | . . . Parts Melted . | . . . Heat Transferred . | . . . Parts Sabotaged . | . . . Parts Stolen . | . . . Parts Stripped . | . . . Power Chain Reactions . | . . . Alert | -11 -10 -10 ------- Run | Yrd Mat Min Peak Influence 281 | . 281 68 Initial 38 | . . 38 Average 97 | . 140 42 Maximum Alert Level 1 | . 1 . Low Security (%) 86 | 100 76 100 Level 1 13 | . 23 . Level 2 . | . . . Level 3 . | . . . Level 4 . | . . . Level 5 . | . . . High Security . | . . . Max Security . | . . . Squads Dispatched . | . . . Investigation . | . . . Extermination . | . . . Reinforcement . | . . . Assault . | . . . Garrison . | . . . Intercept . | . . . Searches Triggered . | . . . Construction Impeded . | . . . Haulers Reinforced . | . . . Active Scanning Responses . | . . . Cargo Convoy Interrupts . | . . . Stealth | -11 -10 -10 --------- Run | Yrd Mat Min Distress Signals 2 | . 2 . Communications Jammed . | . . . Distress Signals . | . . . Times Spotted 37 | . 21 16 Peak Tracking Total 7 | . 5 7 Tactical Retreats 4 | . 2 2 Traps | -11 -10 -10 ------- Run | Yrd Mat Min Traps Triggered 1 | . 1 . Indirectly . | . . . Trap Hack Attempts . | . . . Triggered . | . . . Disarmed . | . . . Reprogrammed . | . . . Reused . | . . . Traps Extracted . | . . . Installed . | . . . Triggered . | . . . Machines | -11 -10 -10 ---------- Run | Yrd Mat Min Machines Disabled . | . . . Max in Single Turn . | . . . Machines Repaired . | . . . Machines Dismantled . | . . . Machines Sabotaged . | . . . Overloaded Fab Kills . | . . . Hacking | -11 -10 -10 --------- Run | Yrd Mat Min Machines Accessed 2 | . 1 1 Terminals 1 | . 1 . Fabricators . | . . . Repair Stations . | . . . Recycling Units . | . . . Scanalyzers . | . . . Garrison Access . | . . . Total Hacks 2 | . 1 1 Successful 2 | . 1 1 Failed . | . . . Catastrophic . | . . . Database Lockouts . | . . . Manual 1 | . 1 . Terminals 1 | . 1 . Fabricators . | . . . Repair Stations . | . . . Recycling Units . | . . . Scanalyzers . | . . . Garrison Access . | . . . Terminal Hacks 2 | . 1 1 Open Door 1 | . . 1 Branch Access Points 1 | . 1 . Fabricator Hacks . | . . . Repair Station Hacks . | . . . Recycling Unit Hacks . | . . . Scanalyzer . | . . . Garrison Access Hacks . | . . . Unauthorized Hacks . | . . . Terminals . | . . . Fabricators . | . . . Repair Stations . | . . . Recycling Units . | . . . Scanalyzers . | . . . Garrison Access . | . . . Data Cores Recovered . | . . . Used . | . . . Hacking Detections . | . . . Full Trace Events . | . . . Feedback Events . | . . . Feedback Blocked . | . . . Robot Schematics Acquired . | . . . Robots Built . | . . . Authchips . | . . . Time . | . . . Total Robot Build Rating . | . . . Part Schematics Acquired . | . . . Parts Built . | . . . Authchips . | . . . Time . | . . . Total Part Build Rating . | . . . Parts Repaired . | . . . Time . | . . . Parts Recycled . | . . . Recycled Matter . | . . . Retrieved Matter . | . . . Retrieved Components . | . . . Parts Scanalyzed . | . . . Part Schematics Acquired . | . . . Parts Damaged . | . . . Bothacking | -11 -10 -10 ------------ Run | Yrd Mat Min Used RIF Installer . | . . . Robots Hacked . | . . . Non-combat . | . . . Combat . | . . . Robot Hacks Applied . | . . . Relay Couplers Released . | . . . Fabnet Peak Effective % . | . . . Robots Rewired . | . . . Allies Hacked . | . . . Hacks Repelled . | . . . Allies | -11 -10 -10 -------- Run | Yrd Mat Min Total Allies . | . . . Largest Group . | . . . Highest-Rated Group . | . . . Highest-Rated Ally . | . . . Total Orders . | . . . Ally Attacks . | . . . Total Damage . | . . . Kills . | . . . Allies Corrupted . | . . . Allies Melted . | . . . Intel | -11 -10 -10 ------- Run | Yrd Mat Min Robot Analysis Total . | . . . Derelict Logs Recovered 2 | . . 2 Drone Launches . | . . . Drone Recoveries . | . . . Exploration | -11 -10 -10 ------------- Run | Yrd Mat Min Turns Passed 1190 | 62 698 430 Spaces Moved 772 | 44 450 278 Core 6 | 6 . . Treads . | . . . Legs 766 | 38 450 278 Wheels . | . . . Hover . | . . . Flight . | . . . Fastest Speed 50 | 50 120 120 Average Speed 119 | 110 120 120 Slowest Speed 120 | 120 120 120 Overloaded Moves . | . . . Propulsion Burnouts . | . . . Robots Hopped . | . . . Cave-ins Triggered . | . . . Exploration Rate (%) 41 | 4 68 53 Regions Visited 2 Branch Regions 1 Pre-discovered Areas . | . . . Known Exits Taken 1 | . 1 . Unknown Exits Taken 1 | 1 . . Scrap Searched . | . . . Spaces Dug . | . . . Terrain Destroyed 56 | . . 56 Melee . | . . . Projectile . | . . . AOE 56 | . . 56 Terrain Rammed . | . . . Walls Destroyed . | . . . Machines Disabled . | . . . Actions | -11 -10 -10 --------- Run | Yrd Mat Min Total 921 | 57 523 341 Wait 48 | . 13 35 Move 770 | 43 449 278 Hop . | . . . Pick Up 19 | 8 10 1 Fast Attach 1 | . 1 . Attach 10 | 6 2 2 Detach . | . . . Swap 6 | . 1 5 Drop 7 | . 4 3 Fire 60 | . 43 17 Melee . | . . . Ram . | . . . Kick . | . . . Crush . | . . . Escape Stasis . | . . . Rewire . | . . . Trap . | . . . Miscellaneous . | . . . Route ------- -11/Scrapyard -10/Materials (discovered 3 exits: [*Mat x2] / *Min) -10/Mines (discovered 1 exit: [*Mat]) History --------- Turn | Location | Event 11 | -11/Scrapyard | Discovered new exit (range 15) 63 | -11/Scrapyard | Entered Materials 180 | -10/Materials | Identified exit to Mines 244 | -10/Materials | Discovered new exit (range 16) 317 | -10/Materials | Build established: Mutant 372 | -10/Materials | Discovered new exit (range 8) 761 | -10/Materials | Entered Mines 770 | -10/Mines | Learned Materials emergency access door positions 800 | -10/Mines | Received a Rocket Launcher from a helpful Derelict 980 | -10/Mines | Assembled infested the area 1027 | -10/Mines | Core integrity fell below 50% 1049 | -10/Mines | Discovered new exit (range 15) 1064 | -10/Mines | Found the Drone Emporium 1180 | -10/Mines | Learned Materials garrison access intel 1191 | -10/Mines | Core integrity fell below 20% 1191 | -10/Mines | Destroyed by as-38311 with Assembled Blade Last Messages --------------- U-05 Engineer builds a Wall. K-01 Serf collects debris. U-05 Engineer lays Concrete. Overheating: Energy bleed (-30). K-01 Serf collects debris. U-05 Engineer lays Concrete. The unstable cave ceiling collapses. K-01 Serf collects debris. Acquired 61 matter. K-01 Serf collects debris. Acquired 10 matter. Acquired derelict log, extracted data. Data stored: Materials garrison access intel. as-50190 destroyed. as-74020 destroyed. as-30402 destroyed. Lgt. Deuterium Engine destroyed. K-01 Serf collects debris. Acquired 2 matter. [Achievement: Back For More] Map ----- +----------------------------------------------------+ | ??????????????????????????????????????????? | | ??????????????????????????????????????????? | | ??????????????????????????????????????????? | | ??????????????????????????????????????????? | | ??????????????????????????????????????????? | | ??????????????????????????????????????????? | | ??????????????????????????????????????????? | | ??????????????????????????????????????????? | | ####??????????????????????????????????????? | | ##?????????????????????????????????????? | | ##????????????????????????????????????? | | # #????????????????????????????????????? | | # #????????????####????????????????????? | | # # #????????????# ????????????????????? | | # # #????????????# ????????????????????? | | # #????????????# #????????????##??????? | | # #????????????# #??????????? ##?????? | | ##????????????# $#?????????? ## ???? | | " #????????????# ##????????#% ???? | | #####????????# ###???### ! ????? | | # #?????#### ####$ ????? | | # ####### % ????? | | # *%! ?????? | | # =** k #???????????? | | ## # ###### *! ##???????????? | | ?## ####????# =@! ##????????????? | | ??## ###???????## ###aa#?????????????? | | ???###??????????########?#aa#?????????????? | | ?????????????????????????# #?????????????? | | ????????????????????????? ?????????????? | | ????????????????????????? ????????????? | | ????????????????????????? ???????????? | | ????????????????????????? ##??????????? | | ???????????????????????? #???????????? | | ???????????????????????? #???????????? | | ???????????????????????? #???????????? | | ????????????????????????## !###???????????? | | ??####????????????????????!%#?????????????? | | ### ##??????????????????? ! ?????????????? | | ## #???????????????????%= ?????????????? | | ##??????????????????! ?????????????? | | ##????????????????? = ?????????????? | | ##????????????????????????????????? | | #### #????????????????????????????????? | | ???## #????????????????????????????????? | | ????## ##????????????????????????????????? | | ?????####?????????????????????????????????? | | ??????????????????????????????????????????? | | ??????????????????????????????????????????? | | ??????????????????????????????????????????? | +----------------------------------------------------+ Best States ------------- Heat Dissipation 25 Energy Generation 14 Energy Capacity 250 Matter Stores 300 Matter Capacity 300 Sight Range 16 Terrain Scan Density 10 ECM Strength 1 Resistance: KI 20 Resistance: TH 20 Resistance: EX 20 Resistance: EM 20 Resistance: I 20 Resistance: S 20 Resistance: P 20 Evasion (%) 55 Targeting Accuracy 5 Offensive Hacking 10 Item Schematics ----------------- None Robot Schematics ------------------ None Fabricated ------------ Nothing Alien Tech Used ----------------- None Achievements -------------- Back For More Challenges ------------ None Game ------ Seed GaussAerolevLoader Manual? 0 Play Time 00:09:19 Cumulative 39.5 hours Start 2024.08.28 @ 15:13:34 End 2024.08.28 @ 15:22:48 Sessions 1 Manual Loads 0 Difficulty Adventurer Special Mode None Game No. 50 Rogue 13 Adventurer 37 Explorer 0 Win Type - Total 0 Types 0/0/0/0/0/0/0/0/0 Lore% 33 Gallery% 40 Achievement% 35 Wizard Run 0 Options --------- Layout 1 ASCII 0 Keyboard 0 Movement Mouse Keybinds 0 Fullscreen 1 Font 24/Smallcaps Map View 50x35 Zoom Use 0% Tactical HUD 0 Map Filters NONE Filters NONE Steam 1 RUN: 7d8b2c65-707e-4433-beaa-ab224e3bb0a1